[Event "German Championship Women 2022"]
[Site "Magdeburg"]
[Date "2022.08.19"]
[Round "8.2"]
[White "Voicu-Jagodzinsky, Carmen"]
[Black "Muetsch, Annmarie"]
[Result "1/2-1/2"]
[ECO "A05"]
[WhiteElo "2258"]
[BlackElo "2249"]
[Annotator "NA RC"]
[PlyCount "53"]
[EventDate "2022.08.14"]
[EventType "swiss"]
[EventCountry "GER"]
[SourceTitle "playchess.com"]
[Source "ChessBase"]
[SourceQuality "1"]
[TimeControl "40/5400+30:1800+30"]

1. Nf3 {[%emt 0:00:02]} Nf6 {[%emt 0:00:25]} 2. c4 {[%emt 0:00:07]} g6 {[%emt 0:00:21]} 3. b3 {[%emt 0:00:05]} Bg7 {[%emt 0:00:12]} 4. Bb2 {[%emt 0:00:03]} d6 {[%emt 0:00:30]} 5. g3 {[%emt 0:00:09]} O-O {[%emt 0:00:28]} 6. Bg2 {[%emt 0:00:04]} c5 {[%emt 0:00:16]} 7. O-O {[%emt 0:01:36]} Nc6 {[%emt 0:00:15]} 8. d3 {[%emt 0:08:46]} Bd7 {[%emt 0:06:47]} 9. Nc3 {[%emt 0:01:54]} a6 {[%emt 0:04:24]} 10. Qd2 {[%emt 0:02:30]} Rb8 {[%emt 0:07:15]} 11. e3 $11 {[%emt 0:08:57]} b5 {[%emt 0:02:35]} 12. Nh4 {[%emt 0:07:54]} b4 {[%emt 0:21:56]} 13. Ne2 {[%emt 0:00:42]} (13. Nd5 $11) 13... a5 {[%emt 0:02:04]} 14. Rad1 {[%emt 0:00:52]} e5 {[%emt 0:13:27]} 15. d4 {[%emt 0:05:20]} cxd4 {[%emt 0:08:14]} 16. exd4 {[%emt 0:00:04]} e4 {[%emt 0:01:01]} 17. d5 {[%emt 0:01:54]} Ne7 {[%emt 0:02:43]} 18. Bxf6 {[%emt 0:11:23]} Bxf6 {[%emt 0:00:05]} 19. Qf4 {[%emt 0:00:32]} Nf5 {[%emt 0:05:26]} 20. Nxf5 {[%emt 0:00:51]} Bxf5 {[%emt 0:00:23]} 21. Bxe4 {[%emt 0:04:57]} Re8 {[%emt 0:03:38]} 22. Bf3 {[%emt 0:04:17]} Bg5 {[%emt 0:03:32]} 23. Qd4 {[%emt 0:00:16]} Bf6 {[%emt 0:00:16]} 24. Qd2 {[%emt 0:00:49]} Bg5 {[%emt 0:01:01]} 25. Qd4 {[%emt 0:06:23]} Bf6 {[%emt 0:00:27]} 26. Qd2 {[%emt 0:00:17]} Bg5 {[%emt 0:00:10]} 27. Qd4 {[%emt 0:06:53]} 1/2-1/2

[Event "German Championship Women 2022"]
[Site "Magdeburg"]
[Date "2022.08.19"]
[Round "8.3"]
[White "Bazzazi, Elnaz"]
[Black "Falke, Ornella"]
[Result "1-0"]
[ECO "B22"]
[WhiteElo "1766"]
[BlackElo "1912"]
[Annotator "NA RC"]
[PlyCount "59"]
[EventDate "2022.08.14"]
[EventType "swiss"]
[EventCountry "GER"]
[SourceTitle "playchess.com"]
[Source "ChessBase"]
[SourceQuality "1"]
[TimeControl "40/5400+30:1800+30"]

1. e4 {[%emt 0:00:05]} c5 {[%emt 0:00:23]} 2. c3 {[%emt 0:00:17]} Nf6 {[%emt 0:00:13]} 3. d3 {[%emt 0:00:08]} Nc6 {[%emt 0:00:18]} 4. f4 {[%emt 0:00:09]} d5 {[%emt 0:08:12]} 5. e5 {[%emt 0:00:05]} Nd7 {[%emt 0:00:12]} 6. Na3 {[%emt 0:01:17]} a6 {[%emt 0:09:32]} 7. g3 {[%emt 0:00:25]} b5 {[%emt 0:00:41]} 8. Bg2 {[%emt 0:05:09]} Nb6 {[%emt 0:05:12]} 9. Ne2 {[%emt 0:01:12]} Bg4 {[%emt 0:06:42]} 10. Nc2 {[%emt 0:04:01]} e6 {[%emt 0:04:25]} 11. Ne3 {[%emt 0:01:56]} Bxe2 {[%emt 0:02:40]} 12. Qxe2 {[%emt 0:00:11]} Qc7 {[%emt 0:02:39]} 13. O-O {[%emt 0:05:04]} Be7 {[%emt 0:01:56]} 14. Kh1 {[%emt 0:11:56]} h5 {[%emt 0:01:02]} 15. Qf3 {[%emt 0:05:33]} g6 {[%emt 0:12:18]} 16. b3 {[%emt 0:03:03]} Kd7 {[%emt 0:11:24]} 17. c4 {[%emt 0:03:46]} d4 {[%emt 0:00:20]} 18. Nd5 {[%emt 0:05:45]} exd5 {[%emt 0:04:49]} 19. cxd5 {[%emt 0:00:06]} Nb4 {[%emt 0:09:56]} 20. d6 {[%emt 0:02:06]} Bxd6 {[%emt 0:00:13]} 21. exd6 {[%emt 0:00:06]} Qxd6 {[%emt 0:00:04]} 22. f5 {[%emt 0:03:36]} Rae8 {[%emt 0:05:10]} 23. fxg6 {[%emt 0:01:12]} fxg6 {[%emt 0:00:34]} 24. Bh3+ {[%emt 0:00:15]} Kd8 {[%emt 0:03:19]} 25. Bg5+ {[%emt 0:00:25]} Re7 {[%emt 0:00:14]} 26. Rae1 {[%emt 0:04:44]} N4d5 {[%emt 0:00:42]} 27. Re6 {[%emt 0:00:31]} Qc7 {[%emt 0:01:11]} 28. Rxe7 {[%emt 0:00:57]} Nxe7 {[%emt 0:00:10]} 29. Qf8+ {[%emt 0:00:10]} Rxf8 {[%emt 0:00:05]} 30. Rxf8# {[%emt 0:00:02]} 1-0

[Event "German Championship Women 2022"]
[Site "Magdeburg"]
[Date "2022.08.19"]
[Round "8.4"]
[White "Kunze, Kerstin"]
[Black "Zhou, Lepu Coco"]
[Result "1/2-1/2"]
[ECO "B45"]
[WhiteElo "2020"]
[BlackElo "1986"]
[Annotator "NA RC"]
[PlyCount "87"]
[EventDate "2022.08.14"]
[EventType "swiss"]
[EventCountry "GER"]
[SourceTitle "playchess.com"]
[Source "ChessBase"]
[SourceQuality "1"]
[TimeControl "40/5400+30:1800+30"]

1. e4 c5 2. Nf3 e6 3. Nc3 Nc6 4. d4 cxd4 5. Nxd4 Nf6 6. a3 d5 7. exd5 exd5 8. Bb5 Bd7 9. O-O Be7 10. Nf3 a6 11. Ba4 Bg4 12. h3 Bxf3 13. Qxf3 b5 14. Bb3 Nd4 15. Qd3 Nxb3 16. cxb3 O-O 17. Rd1 Qc7 18. Bg5 Rad8 19. Bxf6 Bxf6 20. Nxd5 Qe5 21. Nxf6+ Qxf6 22. Qc3 Rxd1+ 23. Rxd1 Rd8 24. Rxd8+ Qxd8 25. Qc6 h6 26. Qxa6 Qd1+ 27. Kh2 Qxb3 28. Qc8+ Kh7 29. Qc3 Qd5 30. Qb4 g5 31. b3 Qe5+ 32. g3 Qd5 33. a4 Qf3 34. Qc5 b4 35. a5 Qxb3 36. Qf5+ Kg7 37. Qe5+ Kg6 38. Qe4+ Kg7 39. Qd4+ Kg6 40. Qe4+ Kg7 41. a6 Qb2 42. Qe3 Qa1 43. a7 b3 44. Qxb3 1/2-1/2

[Event "German Championship Women 2022"]
[Site "Magdeburg"]
[Date "2022.08.19"]
[Round "8.5"]
[White "Halas, Julia"]
[Black "Braun, Kristin"]
[Result "0-1"]
[ECO "E92"]
[WhiteElo "2012"]
[BlackElo "1897"]
[Annotator "NA RC"]
[PlyCount "98"]
[EventDate "2022.08.14"]
[EventType "swiss"]
[EventCountry "GER"]
[SourceTitle "playchess.com"]
[Source "ChessBase"]
[SourceQuality "1"]
[TimeControl "40/5400+30:1800+30"]

1. d4 {[%emt 0:00:03]} Nf6 {[%emt 0:00:04]} 2. c4 {[%emt 0:00:06]} g6 {[%emt 0:00:02]} 3. Nc3 {[%emt 0:00:07]} Bg7 {[%emt 0:00:03]} 4. e4 {[%emt 0:00:07]} d6 {[%emt 0:00:02]} 5. Nf3 {[%emt 0:00:06]} O-O {[%emt 0:00:06]} 6. Be2 {[%emt 0:00:04]} e5 {[%emt 0:00:04]} 7. Be3 {[%emt 0:00:06]} exd4 {[%emt 0:00:05]} 8. Nxd4 {[%emt 0:00:08]} Re8 {[%emt 0:00:04]} 9. f3 {[%emt 0:00:18]} c6 {[%emt 0:00:21]} 10. Qd2 {[%emt 0:01:07]} d5 {[%emt 0:00:09]} 11. exd5 {[%emt 0:01:06]} cxd5 {[%emt 0:00:04]} 12. O-O {[%emt 0:02:13]} Nc6 {[%emt 0:00:09]} 13. c5 {[%emt 0:15:15]} Nh5 {[%emt 0:00:55]} 14. Rad1 {[%emt 0:00:42]} Qh4 {[%emt 0:33:09]} 15. Bf2 {[%emt 0:36:38]} Qf4 {[%emt 0:11:10]} 16. Qxf4 {[%emt 0:01:14]} Nxf4 {[%emt 0:00:19]} 17. Bb5 {[%emt 0:11:46]} Bd7 {[%emt 0:00:44]} 18. Kh1 {[%emt 0:08:48]} a6 {[%emt 0:01:24]} 19. Ba4 {[%emt 0:00:45]} Rad8 {[%emt 0:02:13]} 20. Bb3 {[%emt 0:02:23]} Ne6 {[%emt 0:06:43]} 21. Nce2 {[%emt 0:02:20]} Bc8 {[%emt 0:03:25]} 22. Nxe6 {[%emt 0:07:00]} fxe6 {[%emt 0:00:30]} 23. Rd2 {[%emt 0:01:50]} Na5 {[%emt 0:02:13]} 24. Bh4 {[%emt 0:03:09]} Nxb3 {[%emt 0:01:00]} 25. axb3 {[%emt 0:00:01]} Rd7 {[%emt 0:00:42]} 26. Rfd1 {[%emt 0:01:41]} Rc7 {[%emt 0:02:26]} 27. b4 {[%emt 0:00:57]} Bd7 {[%emt 0:01:04]} 28. Bg3 {[%emt 0:00:42]} Rcc8 {[%emt 0:01:36]} 29. Bd6 {[%emt 0:01:27]} Bh6 {[%emt 0:01:10]} 30. f4 {[%emt 0:01:04]} g5 {[%emt 0:04:25]} 31. g3 {[%emt 0:00:49]} gxf4 {[%emt 0:00:22]} 32. Bxf4 {[%emt 0:01:05]} Bf8 {[%emt 0:03:17]} 33. Be5 {[%emt 0:00:33]} Bg7 {[%emt 0:05:10]} 34. Bxg7 Kxg7 35. Nf4 {[%emt 0:00:27]} b6 {[%emt 0:04:26]} 36. cxb6 {[%emt 0:00:25]} Rc6 {[%emt 0:00:45]} 37. Nd3 {[%emt 0:00:26]} Rxb6 {[%emt 0:01:41]} 38. Ne5 {[%emt 0:00:59]} Ba4 {[%emt 0:05:04]} 39. Rc1 {[%emt 0:00:17]} Re7 {[%emt 0:00:43]} 40. Rd4 {[%emt 0:00:47]} Reb7 {[%emt 0:01:08]} 41. Nd3 {[%emt 0:05:17]} Be8 {[%emt 0:05:44]} 42. Kg1 {[%emt 0:05:14]} Kf6 {[%emt 0:03:24]} 43. Rf1+ {[%emt 0:06:55]} Ke7 {[%emt 0:03:10]} 44. Nc5 {[%emt 0:03:21]} Rxb4 {[%emt 0:01:09]} 45. Rdd1 {[%emt 0:06:11]} R7b6 {[%emt 0:03:58]} 46. Rfe1 {[%emt 0:01:18]} Rd6 {[%emt 0:06:27]} 47. Rd2 {[%emt 0:02:11]} Bg6 {[%emt 0:00:33]} 48. Ra1 {[%emt 0:01:57]} Rc6 {[%emt 0:00:50]} 49. Nxa6 {[%emt 0:00:50]} Rbb6 {[%emt 0:00:01]} 0-1

[Event "German Championship Women 2022"]
[Site "Magdeburg"]
[Date "2022.08.19"]
[Round "8.6"]
[White "Birkholz, Olga"]
[Black "Peglau, Dora"]
[Result "1-0"]
[ECO "A05"]
[WhiteElo "2002"]
[BlackElo "1920"]
[Annotator "NA RC"]
[PlyCount "71"]
[EventDate "2022.08.14"]
[EventType "swiss"]
[EventCountry "GER"]
[SourceTitle "playchess.com"]
[Source "ChessBase"]
[SourceQuality "1"]
[TimeControl "40/5400+30:1800+30"]

1. Nf3 {[%emt 0:00:05]} Nf6 {[%emt 0:00:15]} 2. b3 {[%emt 0:00:05]} g6 {[%emt 0:00:38]} 3. Bb2 {[%emt 0:00:17]} Bg7 {[%emt 0:00:08]} 4. c4 {[%emt 0:01:12]} c5 {[%emt 0:01:08]} 5. e3 {[%emt 0:00:46]} O-O {[%emt 0:02:02]} 6. Be2 {[%emt 0:02:17]} d5 {[%emt 0:06:05]} 7. O-O {[%emt 0:02:03]} Nc6 {[%emt 0:02:47]} 8. cxd5 {[%emt 0:04:43]} Nxd5 {[%emt 0:00:20]} 9. Bxg7 {[%emt 0:01:36]} Kxg7 {[%emt 0:00:06]} 10. Qc1 {[%emt 0:00:20]} Qd6 {[%emt 0:03:08]} 11. Na3 {[%emt 0:04:43]} e5 {[%emt 0:05:40]} 12. Qb2 {[%emt 0:09:24]} f6 {[%emt 0:05:46]} 13. Nb5 {[%emt 0:10:22]} Qe7 {[%emt 0:03:53]} 14. d4 {[%emt 0:02:44]} a6 {[%emt 0:08:23]} 15. Na3 {[%emt 0:12:50]} cxd4 {[%emt 0:06:12]} 16. Bc4 {[%emt 0:01:49]} Be6 {[%emt 0:04:14]} 17. exd4 {[%emt 0:02:58]} b5 {[%emt 0:07:41]} 18. Be2 {[%emt 0:12:28]} Nxd4 {[%emt 0:04:16]} 19. Nxd4 {[%emt 0:00:48]} exd4 {[%emt 0:00:07]} 20. Nc2 {[%emt 0:00:31]} d3 {[%emt 0:05:59]} 21. Bxd3 {[%emt 0:00:21]} Nf4 {[%emt 0:02:21]} 22. Be4 {[%emt 0:06:31]} Bd5 {[%emt 0:09:01]} 23. Bxd5 {[%emt 0:00:14]} Nxd5 {[%emt 0:00:14]} 24. Rfe1 {[%emt 0:01:37]} Qf7 {[%emt 0:03:50]} 25. Nd4 {[%emt 0:01:59]} Rfe8 {[%emt 0:00:57]} 26. Qd2 {[%emt 0:05:55]} Rxe1+ {[%emt 0:02:14]} 27. Rxe1 {[%emt 0:01:05]} Re8 {[%emt 0:00:25]} 28. Rc1 {[%emt 0:02:46]} Qe7 {[%emt 0:03:23]} 29. g3 {[%emt 0:01:29]} Qb7 {[%emt 0:06:38]} 30. Rd1 {[%emt 0:00:50]} Re7 {[%emt 0:01:54]} 31. h4 {[%emt 0:00:29]} h5 {[%emt 0:01:39]} 32. b4 {[%emt 0:01:42]} Nb6 {[%emt 0:00:38]} 33. Qf4 {[%emt 0:01:51]} Nd5 {[%emt 0:01:33]} 34. Qd6 {[%emt 0:00:44]} Kf7 {[%emt 0:01:49]} 35. Nc6 {[%emt 0:02:03]} Qd7 {[%emt 0:01:41]} 36. Qxd5+ 1-0

[Event "German Championship Women 2022"]
[Site "Magdeburg"]
[Date "2022.08.19"]
[Round "8.7"]
[White "Voigt, Anastasia"]
[Black "Basovskiy, Jana"]
[Result "1/2-1/2"]
[ECO "B18"]
[WhiteElo "1694"]
[BlackElo "1867"]
[Annotator "NA RC"]
[PlyCount "79"]
[EventDate "2022.08.14"]
[EventType "swiss"]
[EventCountry "GER"]
[SourceTitle "playchess.com"]
[Source "ChessBase"]
[SourceQuality "1"]
[TimeControl "40/5400+30:1800+30"]

1. e4 {[%emt 0:00:01]} c6 {[%emt 0:00:04]} 2. d4 {[%emt 0:00:05]} d5 {[%emt 0:00:03]} 3. Nd2 {[%emt 0:00:06]} dxe4 {[%emt 0:00:04]} 4. Nxe4 {[%emt 0:00:06]} Bf5 {[%emt 0:00:02]} 5. Ng3 {[%emt 0:00:09]} Bg6 {[%emt 0:00:05]} 6. Nf3 {[%emt 0:00:04]} e6 {[%emt 0:00:06]} 7. Bc4 {[%emt 0:00:20]} Nd7 {[%emt 0:00:09]} 8. c3 {[%emt 0:00:12]} Ngf6 {[%emt 0:00:18]} 9. O-O {[%emt 0:00:15]} Be7 {[%emt 0:00:46]} 10. Re1 {[%emt 0:00:55]} O-O {[%emt 0:00:08]} 11. Nh4 {[%emt 0:00:31]} c5 {[%emt 0:02:35]} 12. Nxg6 {[%emt 0:00:30]} hxg6 {[%emt 0:00:05]} 13. dxc5 {[%emt 0:04:56]} Nxc5 {[%emt 0:00:19]} 14. Be3 {[%emt 0:01:27]} Rc8 {[%emt 0:03:46]} 15. Qc2 {[%emt 0:11:09]} Qc7 {[%emt 0:03:24]} 16. Be2 {[%emt 0:04:08]} Nd5 {[%emt 0:01:32]} 17. Bxc5 {[%emt 0:02:58]} Bxc5 {[%emt 0:00:48]} 18. Bf3 {[%emt 0:01:36]} Rfd8 {[%emt 0:03:04]} 19. Rad1 {[%emt 0:00:36]} Nf6 {[%emt 0:01:34]} 20. Ne4 {[%emt 0:03:16]} Nxe4 {[%emt 0:01:11]} 21. Bxe4 {[%emt 0:00:08]} b6 {[%emt 0:02:00]} 22. g3 {[%emt 0:00:45]} b5 {[%emt 0:07:54]} 23. Rxd8+ {[%emt 0:01:29]} Rxd8 {[%emt 0:00:17]} 24. Rd1 {[%emt 0:00:07]} a6 {[%emt 0:01:23]} 25. Rxd8+ {[%emt 0:01:02]} Qxd8 {[%emt 0:00:25]} 26. Qd3 {[%emt 0:00:21]} Qf6 {[%emt 0:02:58]} 27. Qd2 {[%emt 0:01:03]} Ba7 {[%emt 0:01:24]} 28. Kg2 {[%emt 0:00:29]} e5 {[%emt 0:00:56]} 29. h3 {[%emt 0:01:39]} Qb6 {[%emt 0:10:33]} 30. Bd5 {[%emt 0:00:10]} Qc5 {[%emt 0:05:20]} 31. g4 {[%emt 0:01:00]} g5 {[%emt 0:14:44]} 32. Be4 {[%emt 0:00:43]} Qb6 {[%emt 0:08:25]} 33. Qe2 {[%emt 0:00:44]} g6 {[%emt 0:05:24]} 34. Qf3 {[%emt 0:00:13]} Kg7 {[%emt 0:00:21]} 35. Bd5 {[%emt 0:00:38]} Qc7 {[%emt 0:00:58]} 36. Qe4 {[%emt 0:00:51]} Qd6 {[%emt 0:02:06]} 37. Qf3 {[%emt 0:00:10]} Qc7 {[%emt 0:00:14]} 38. Qe4 {[%emt 0:00:14]} Qd6 {[%emt 0:00:37]} 39. Qf3 {[%emt 0:00:28]} Qc7 {[%emt 0:03:12]} 40. Qe4 {[%emt 0:00:20]} 1/2-1/2

[Event "German Championship Women 2022"]
[Site "Magdeburg"]
[Date "2022.08.19"]
[Round "8.8"]
[White "Bluebaum, Johanna"]
[Black "Heil, Marina"]
[Result "1-0"]
[ECO "A85"]
[WhiteElo "2013"]
[BlackElo "1926"]
[Annotator "NA RC"]
[PlyCount "105"]
[EventDate "2022.08.14"]
[EventType "swiss"]
[EventCountry "GER"]
[SourceTitle "playchess.com"]
[Source "ChessBase"]
[SourceQuality "1"]
[TimeControl "40/5400+30:1800+30"]

1. d4 {[%emt 0:00:01]} f5 {[%emt 0:00:06]} 2. c4 {[%emt 0:00:05]} Nf6 {[%emt 0:00:05]} 3. Nc3 {[%emt 0:00:04]} e6 {[%emt 0:00:07]} 4. e3 {[%emt 0:00:04]} b6 {[%emt 0:00:13]} 5. Bd3 {[%emt 0:01:08]} Bb7 {[%emt 0:00:12]} 6. f3 {[%emt 0:00:48]} Nh5 {[%emt 0:02:50]} 7. Qe2 {[%emt 0:03:48]} Qh4+ {[%emt 0:03:17]} 8. Qf2 {[%emt 0:02:01]} Qxf2+ {[%emt 0:01:28]} 9. Kxf2 {[%emt 0:00:47]} Nc6 {[%emt 0:04:38]} 10. Nge2 {[%emt 0:01:46]} O-O-O {[%emt 0:01:08]} 11. Bd2 {[%emt 0:04:00]} Be7 {[%emt 0:01:24]} 12. a3 {[%emt 0:09:57]} g5 {[%emt 0:06:35]} 13. b4 {[%emt 0:09:27]} d6 {[%emt 0:07:09]} 14. Na2 {[%emt 0:04:49]} Bf6 {[%emt 0:02:19]} 15. b5 {[%emt 0:04:13]} Ne7 {[%emt 0:01:08]} 16. Rhc1 {[%emt 0:04:15]} e5 {[%emt 0:03:36]} 17. d5 {[%emt 0:02:45]} e4 {[%emt 0:02:38]} 18. fxe4 {[%emt 0:02:04]} fxe4 {[%emt 0:00:52]} 19. Bxe4 {[%emt 0:00:12]} Bxa1 {[%emt 0:00:11]} 20. Rxa1 {[%emt 0:00:05]} Rdf8+ {[%emt 0:01:42]} 21. Kg1 {[%emt 0:01:17]} h6 {[%emt 0:05:02]} 22. Nd4 {[%emt 0:01:37]} Nf6 {[%emt 0:04:09]} 23. Bd3 {[%emt 0:00:55]} a5 {[%emt 0:05:32]} 24. Ne6 {[%emt 0:01:59]} Rf7 {[%emt 0:00:32]} 25. e4 {[%emt 0:01:42]} Ng4 {[%emt 0:03:37]} 26. Bc3 {[%emt 0:00:23]} Ne5 {[%emt 0:02:52]} 27. Be2 {[%emt 0:02:59]} Rg8 {[%emt 0:01:56]} 28. Nc1 {[%emt 0:03:02]} N7g6 {[%emt 0:02:21]} 29. g3 {[%emt 0:03:37]} Nf8 {[%emt 0:03:39]} 30. Bxe5 {[%emt 0:02:05]} dxe5 {[%emt 0:00:18]} 31. Bg4 {[%emt 0:00:44]} Kb8 {[%emt 0:00:40]} 32. Nd3 {[%emt 0:00:29]} Nd7 {[%emt 0:06:55]} 33. Rc1 {[%emt 0:06:37]} Bc8 {[%emt 0:02:19]} 34. Bf5 {[%emt 0:04:31]} Rf6 {[%emt 0:02:22]} 35. c5 {[%emt 0:04:13]} Nf8 {[%emt 0:00:20]} 36. cxb6 {[%emt 0:01:40]} Nxe6 {[%emt 0:02:42]} 37. dxe6 {[%emt 0:04:39]} cxb6 {[%emt 0:02:15]} 38. Rc6 {[%emt 0:01:59]} Re8 {[%emt 0:00:30]} 39. Nxe5 {[%emt 0:02:48]} Rexe6 {[%emt 0:02:43]} 40. Bxe6 {[%emt 0:02:41]} Rxe6 {[%emt 0:00:09]} 41. Rxe6 {[%emt 0:30:53]} Bxe6 {[%emt 0:30:05]} 42. Kf2 {[%emt 0:00:12]} Kc7 {[%emt 0:06:36]} 43. Ke3 {[%emt 0:00:07]} Kd6 {[%emt 0:00:11]} 44. Kd4 {[%emt 0:00:05]} h5 {[%emt 0:01:41]} 45. Nc4+ {[%emt 0:02:04]} Bxc4 {[%emt 0:01:41]} 46. Kxc4 {[%emt 0:00:05]} Ke5 {[%emt 0:00:06]} 47. Kd3 {[%emt 0:00:04]} h4 {[%emt 0:01:00]} 48. a4 {[%emt 0:00:59]} Kd6 {[%emt 0:03:11]} 49. Kd4 {[%emt 0:00:05]} Ke6 {[%emt 0:00:07]} 50. g4 {[%emt 0:00:43]} h3 {[%emt 0:00:12]} 51. e5 {[%emt 0:00:06]} Kd7 {[%emt 0:00:52]} 52. Kd5 {[%emt 0:00:04]} Ke7 {[%emt 0:00:07]} 53. e6 {[%emt 0:00:10]} 1-0

[Event "German Championship Women 2022"]
[Site "Magdeburg"]
[Date "2022.08.19"]
[Round "8.9"]
[White "Wartenberg, Alissa"]
[Black "Spiel, Marianne"]
[Result "1-0"]
[ECO "C11"]
[WhiteElo "1632"]
[BlackElo "1893"]
[Annotator "NA RC"]
[PlyCount "121"]
[EventDate "2022.08.14"]
[EventType "swiss"]
[EventCountry "GER"]
[SourceTitle "playchess.com"]
[Source "ChessBase"]
[SourceQuality "1"]
[TimeControl "40/5400+30:1800+30"]

1. e4 {[%emt 0:00:03]} e6 {[%emt 0:00:05]} 2. d4 {[%emt 0:00:03]} d5 {[%emt 0:00:04]} 3. Nc3 {[%emt 0:00:09]} Nf6 {[%emt 0:00:15]} 4. e5 {[%emt 0:00:06]} Nfd7 {[%emt 0:00:24]} 5. Nce2 {[%emt 0:00:06]} c5 {[%emt 0:00:57]} 6. c3 {[%emt 0:00:08]} Nc6 {[%emt 0:00:36]} 7. Nf3 {[%emt 0:00:10]} Qb6 {[%emt 0:06:40]} 8. a3 {[%emt 0:04:53]} cxd4 {[%emt 0:02:57]} 9. cxd4 {[%emt 0:00:25]} f6 {[%emt 0:00:27]} 10. exf6 {[%emt 0:00:47]} Nxf6 {[%emt 0:00:16]} 11. Nc3 {[%emt 0:00:52]} Bd6 {[%emt 0:02:06]} 12. Be3 {[%emt 0:04:09]} O-O {[%emt 0:06:55]} 13. Bd3 {[%emt 0:03:29]} a6 {[%emt 0:02:34]} 14. O-O {[%emt 0:04:04]} Qc7 {[%emt 0:08:00]} 15. h3 {[%emt 0:02:53]} Bd7 {[%emt 0:07:22]} 16. Rc1 {[%emt 0:04:46]} Be8 {[%emt 0:04:26]} 17. b4 {[%emt 0:02:58]} Qe7 {[%emt 0:10:57]} 18. Re1 {[%emt 0:03:19]} Bh5 {[%emt 0:09:28]} 19. Bb1 {[%emt 0:18:44]} Rac8 {[%emt 0:11:53]} 20. Bg5 {[%emt 0:04:27]} Qf7 {[%emt 0:04:20]} 21. Bxf6 {[%emt 0:02:35]} Qxf6 {[%emt 0:00:32]} 22. Qd3 {[%emt 0:00:32]} Bg6 {[%emt 0:00:57]} 23. Qe2 {[%emt 0:02:38]} Bf4 {[%emt 0:01:39]} 24. Rcd1 {[%emt 0:05:55]} Bxb1 {[%emt 0:06:46]} 25. Rxb1 {[%emt 0:02:31]} Nxd4 {[%emt 0:04:49]} 26. Nxd4 {[%emt 0:00:09]} Rxc3 {[%emt 0:00:15]} 27. Nxe6 {[%emt 0:03:19]} Re8 {[%emt 0:03:21]} 28. Qg4 {[%emt 0:02:57]} Bd6 {[%emt 0:01:49]} 29. Nc5 {[%emt 0:07:22]} Rf8 {[%emt 0:01:09]} 30. Re2 {[%emt 0:03:43]} Bxc5 {[%emt 0:01:27]} 31. bxc5 {[%emt 0:00:08]} Rxc5 {[%emt 0:00:14]} 32. Rxb7 {[%emt 0:00:28]} Rc1+ {[%emt 0:00:19]} 33. Kh2 {[%emt 0:00:08]} Qd6+ {[%emt 0:00:54]} 34. g3 Rc7 {[%emt 0:00:00]} 35. Rxc7 {[%emt 0:00:55]} Qxc7 {[%emt 0:00:19]} 36. Qe6+ {[%emt 0:00:01]} Qf7 {[%emt 0:00:13]} 37. Qxa6 {[%emt 0:00:43]} Qf3 38. Qe6+ Kh8 {[%emt 0:00:42]} 39. a4 {[%emt 0:02:59]} d4 {[%emt 0:00:34]} 40. Qe4 {[%emt 0:01:31]} Qf6 {[%emt 0:00:40]} 41. Rd2 {[%emt 0:30:17]} Rd8 {[%emt 0:31:07]} 42. Kg2 {[%emt 0:00:24]} h6 {[%emt 0:01:02]} 43. a5 {[%emt 0:01:14]} Qg5 {[%emt 0:01:08]} 44. Rxd4 {[%emt 0:01:34]} Rxd4 {[%emt 0:00:14]} 45. Qxd4 {[%emt 0:00:06]} Qxa5 {[%emt 0:00:07]} 46. Qe4 {[%emt 0:00:37]} Qd2 {[%emt 0:00:31]} 47. Qe8+ {[%emt 0:00:48]} Kh7 {[%emt 0:00:00]} 48. Qf7 {[%emt 0:00:00]} Qc2 {[%emt 0:00:00]} 49. g4 {[%emt 0:00:00]} Qe4+ {[%emt 0:00:00]} 50. Qf3 {[%emt 0:00:00]} Qxf3+ {[%emt 0:00:00]} 51. Kxf3 {[%emt 0:00:00]} Kg6 {[%emt 0:00:00]} 52. Kf4 {[%emt 0:00:00]} Kf6 {[%emt 0:00:00]} 53. h4 {[%emt 0:00:00]} g5+ {[%emt 0:00:00]} 54. hxg5+ {[%emt 0:00:00]} hxg5+ {[%emt 0:00:00]} 55. Ke4 {[%emt 0:00:00]} Ke6 {[%emt 0:00:00]} 56. f3 {[%emt 0:00:00]} Kf6 {[%emt 0:00:00]} 57. Kd5 {[%emt 0:00:00]} Kf7 {[%emt 0:00:00]} 58. Ke5 {[%emt 0:00:00]} Kg6 {[%emt 0:00:00]} 59. Ke6 {[%emt 0:00:00]} Kg7 {[%emt 0:00:00]} 60. Kf5 {[%emt 0:00:00]} Kh6 {[%emt 0:00:00]} 61. Kf6 {[%emt 0:00:00]} 1-0